fUSD/lending_fUSD_20250123
["ID","MTS","AMOUNT","RATE_DAILY","PERIOD"]
[350119410,1737640248468,-1134.32,0.00016438,2]
[350119411,1737640248477,-241.57029567,0.00016438,2]
[350119412,1737640248487,-500.0,0.00016438,2]
[350119413,1737640248497,-159.052791,0.00016438,2]
[350119414,1737640248507,-500.0,0.00016438,2]
[350119415,1737640248516,-500.0,0.00016438,2]
[350119416,1737640248530,-500.0,0.00016438,2]
[350119417,1737640248539,-591.77,0.00016438,2]
[350119418,1737640248548,-500.0,0.00016438,2]
[350119419,1737640248557,-500.0,0.00016438,2]
[350119420,1737640248567,-500.0,0.00016438,2]
[350119421,1737640248577,-500.0,0.00016438,2]
[350119422,1737640248588,-822.81,0.00016438,2]
[350119423,1737640248599,-158.892989,0.00016438,2]
[350119424,1737640248610,-888.21,0.00016438,2]
[350119425,1737640248623,-500.0,0.00016438,2]
[350119426,1737640248633,-500.0,0.00016438,2]
[350119427,1737640248643,-500.0,0.00016438,2]
[350119428,1737640248652,-500.0,0.00016438,2]
[350119429,1737640248661,-1378.07,0.00016438,2]
[350119430,1737640248671,-500.0,0.00016438,2]
[350119431,1737640248681,-500.0,0.00016438,2]
[350119432,1737640248692,-500.0,0.00016438,2]
[350119433,1737640248703,-151.0,0.00016438,2]
[350119434,1737640248712,-374.50473567,0.00016438,2]
[350119435,1737640248722,-151.0,0.00016438,2]
[350119436,1737640248731,-503.19504524,0.00016438,2]
[350119437,1737640248741,-151.0,0.00016438,2]
[350119438,1737640248750,-500.0,0.00016438,2]
[350119439,1737640248759,-151.0,0.00016438,2]
[350119440,1737640248773,-976.53,0.00016438,2]
[350119441,1737640248783,-500.0,0.00016438,2]
[350119442,1737640248792,-500.0,0.00016438,2]
[350119443,1737640248802,-500.0,0.00016438,2]
[350119444,1737640248811,-1941.21,0.00016438,2]
[350119445,1737640248821,-500.0,0.00016438,2]
[350119446,1737640248830,-3148.91,0.00016438,2]
[350119447,1737640248839,-500.0,0.00016438,2]
[350119448,1737640248848,-1138.14,0.00016438,2]
[350119449,1737640248858,-500.0,0.00016438,2]
[350119450,1737640248867,-522.8613425,0.00016438,2]
[350119451,1737640248876,-632.50862155,0.00016438,2]
[350119452,1737640248886,-500.0,0.00016438,2]
[350119453,1737640248895,-1084.03,0.00016438,2]
[350119454,1737640248905,-500.0,0.00016438,2]
[350119455,1737640248914,-505.66375697,0.00016438,2]
[350119456,1737640248923,-500.0,0.00016438,2]
[350119457,1737640248932,-500.0,0.00016438,2]
[350119458,1737640248941,-500.0,0.00016438,2]
[350119459,1737640248950,-500.0,0.00016438,2]
[350119460,1737640248960,-500.0,0.00016438,2]
[350119461,1737640248969,-200.0,0.00016438,2]
[350119462,1737640248978,-500.0,0.00016438,2]
[350119463,1737640248989,-500.0,0.00016438,2]
[350119464,1737640248998,-500.0,0.00016438,2]
[350119465,1737640249007,-874.03,0.00016438,2]
[350119466,1737640249017,-500.0,0.00016438,2]
[350119467,1737640249033,-2019.9,0.00016438,2]
[350119468,1737640249043,-500.0,0.00016438,2]
[350119469,1737640249052,-924.03,0.00016438,2]
[350119470,1737640249062,-500.0,0.00016438,2]
[350119471,1737640249071,-500.0,0.00016438,2]
[350119472,1737640249081,-500.0,0.00016438,2]
[350119473,1737640249090,-500.0,0.00016438,2]
[350119474,1737640249100,-500.0,0.00016438,2]
[350119475,1737640249109,-153.22525645,0.00016438,2]
[350119476,1737640249119,-500.0,0.00016438,2]
[350119477,1737640249129,-624.08,0.00016438,2]
[350119478,1737640249138,-500.0,0.00016438,2]
[350119479,1737640249148,-261.55182269,0.00016438,2]
[350119480,1737640249158,-1892.77,0.00016438,2]
[350119481,1737640249167,-500.0,0.00016438,2]
[350119482,1737640249177,-500.0,0.00016438,2]
[350119483,1737640249187,-500.0,0.00016438,2]
[350119484,1737640249196,-500.0,0.00016438,2]
[350119485,1737640249206,-1944.7,0.00016438,2]
[350119486,1737640249215,-500.0,0.00016438,2]
[350119487,1737640249225,-500.0,0.00016438,2]
[350119488,1737640249235,-500.0,0.00016438,2]
[350119489,1737640249244,-500.0,0.00016438,2]
[350119490,1737640249254,-500.0,0.00016438,2]
[350119491,1737640249263,-500.0,0.00016438,2]
[350119492,1737640249278,-500.0,0.00016438,2]
[350119493,1737640249288,-505.78891975,0.00016438,2]
[350119494,1737640249298,-500.0,0.00016438,2]
[350119495,1737640249307,-500.0,0.00016438,2]
[350119496,1737640249317,-517.23197224,0.00016438,2]
[350119497,1737640249327,-1091.75,0.00016438,2]
[350119498,1737640249336,-500.0,0.00016438,2]
[350119499,1737640249346,-1322.13,0.00016438,2]
[350119500,1737640249356,-508.56917387,0.00016438,2]
[350119501,1737640249365,-1607.71,0.00016438,2]
[350119502,1737640249375,-500.0,0.00016438,2]
[350119503,1737640249384,-925.68,0.00016438,2]
[350119504,1737640249393,-500.0,0.00016438,2]
[350119505,1737640249402,-503.50955423,0.00016438,2]
[350119506,1737640249411,-500.0,0.00016438,2]
[350119507,1737640249421,-500.0,0.00016438,2]
[350119508,1737640249441,-500.0,0.00016438,2]
[350119509,1737640249451,-500.0,0.00016438,2]
[350119510,1737640249460,-505.41451685,0.00016438,2]
[350119511,1737640249470,-500.0,0.00016438,2]
[350119512,1737640249479,-500.0,0.00016438,2]
[350119513,1737640249488,-500.0,0.00016438,2]
[350119514,1737640249497,-502.27239425,0.00016438,2]
[350119515,1737640249507,-500.0,0.00016438,2]
[350119516,1737640249516,-1978.02,0.00016438,2]
[350119517,1737640249529,-500.0,0.00016438,2]
[350119518,1737640249538,-500.0,0.00016438,2]
[350119519,1737640249547,-500.82654821,0.00016438,2]
[350119520,1737640249556,-734.84,0.00016438,2]
[350119521,1737640249565,-500.0,0.00016438,2]
[350119522,1737640249575,-1967.84,0.00016438,2]
[350119523,1737640249584,-500.0,0.00016438,2]
[350119524,1737640249593,-500.0,0.00016438,2]
[350119525,1737640249602,-894.01,0.00016438,2]
[350119526,1737640249614,-502.36773505,0.00016438,2]
[350119527,1737640249623,-500.0,0.00016438,2]
[350119528,1737640249633,-500.0,0.00016438,2]
[350119529,1737640249642,-500.0,0.00016438,2]
[350119530,1737640249655,-500.0,0.00016438,2]
[350119531,1737640249665,-500.0,0.00016438,2]
[350119532,1737640249674,-656.9,0.00016438,2]
[350119533,1737640249684,-2218.74,0.00016438,2]
[350119534,1737640249693,-500.0,0.00016438,2]
[350119535,1737640249703,-500.0,0.00016438,2]
[350119536,1737640249712,-2069.76,0.00016438,2]
[350119537,1737640249721,-500.0,0.00016438,2]
[350119538,1737640249730,-500.0,0.00016438,2]
[350119539,1737640249740,-500.0,0.00016438,2]
[350119540,1737640249749,-1000.0,0.00016438,2]
[350119541,1737640249759,-565.84,0.00016438,2]
[350119542,1737640249767,-151.0,0.00016438,2]
[350119543,1737640249779,-151.0,0.00016438,2]
[350119544,1737640249788,-151.0,0.00016438,2]
[350119545,1737640249797,-151.0,0.00016438,2]
[350119546,1737640249807,-501.50750047,0.00016438,2]
[350119547,1737640249818,-500.0,0.00016438,2]
[350119548,1737640249827,-1190.32,0.00016438,2]
[350119549,1737640249836,-500.0,0.00016438,2]
[350119550,1737640249845,-612.57,0.00016438,2]
[350119551,1737640249854,-501.29740811,0.00016438,2]
[350119552,1737640249864,-500.0,0.00016438,2]
[350119553,1737640249873,-502.46625167,0.00016438,2]
[350119554,1737640249883,-500.0,0.00016438,2]
[350119555,1737640249892,-652.45,0.00016438,2]
[350119556,1737640249901,-500.0,0.00016438,2]
[350119557,1737640249910,-500.0,0.00016438,2]
[350119558,1737640249919,-500.0,0.00016438,2]
[350119559,1737640249930,-1193.57,0.00016438,2]
[350119560,1737640249939,-500.0,0.00016438,2]
[350119561,1737640249948,-500.0,0.00016438,2]
[350119562,1737640249957,-382.69991141,0.00016438,2]
[350119563,1737640249971,-1805.12,0.00016438,2]
[350119564,1737640249980,-500.0,0.00016438,2]
[350119565,1737640249991,-500.0,0.00016438,2]
[350119566,1737640250000,-523.09,0.00016438,2]
[350119567,1737640250009,-3098.47,0.00016438,2]
[350119568,1737640250018,-1069.73,0.00016438,2]
[350119569,1737640250030,-500.0,0.00016438,2]
[350119570,1737640250039,-151.0,0.00016438,2]
[350119571,1737640250048,-151.0,0.00016438,2]
[350119572,1737640250057,-151.0,0.00016438,2]
[350119573,1737640250066,-151.0,0.00016438,2]
[350119574,1737640250075,-886.05,0.00016438,2]
[350119575,1737640250084,-500.0,0.00016438,2]
[350119576,1737640250094,-500.0,0.00016438,2]
[350119577,1737640250103,-500.0,0.00016438,2]
[350119578,1737640250112,-355.45789463,0.00016438,2]
[350119579,1737640250121,-500.0,0.00016438,2]
[350119580,1737640250130,-500.0,0.00016438,2]
[350119581,1737640250139,-500.0,0.00016438,2]
[350119582,1737640250149,-1445.53,0.00016438,2]
[350119583,1737640250158,-2067.13,0.00016438,2]
[350119584,1737640250167,-506.17684059,0.00016438,2]
[350119585,1737640250177,-1105.28,0.00016438,2]
[350119586,1737640250186,-1263.3,0.00016438,2]
[350119587,1737640250195,-500.0,0.00016438,2]
[350119588,1737640250204,-500.0,0.00016438,2]
[350119589,1737640250214,-531.77281297,0.00016438,2]
[350119590,1737640250223,-500.0,0.00016438,2]
[350119591,1737640250232,-500.0,0.00016438,2]
[350119592,1737640250241,-2225.23,0.00016438,2]
[350119593,1737640250250,-500.0,0.00016438,2]
[350119594,1737640250259,-500.0,0.00016438,2]
[350119595,1737640250268,-511.43545472,0.00016438,2]
[350119596,1737640250279,-500.0,0.00016438,2]
[350119597,1737640250288,-500.0,0.00016438,2]
[350119598,1737640250298,-925.9,0.00016438,2]
[350119599,1737640250306,-500.0,0.00016438,2]
[350119600,1737640250316,-650.48,0.00016438,2]
[350119601,1737640250325,-500.0,0.00016438,2]
[350119602,1737640250334,-500.0,0.00016438,2]
[350119603,1737640250343,-828.47,0.00016438,2]
[350119604,1737640250352,-500.0,0.00016438,2]
[350119605,1737640250361,-868.73,0.00016438,2]
[350119606,1737640250370,-500.0,0.00016438,2]
[350119607,1737640250379,-1491.73,0.00016438,2]
[350119608,1737640250388,-500.0,0.00016438,2]
[350119609,1737640250397,-500.0,0.00016438,2]
[350119610,1737640250406,-509.18016791,0.00016438,2]
[350119611,1737640250415,-500.0,0.00016438,2]
[350119612,1737640250443,-500.0,0.00016438,2]
[350119613,1737640250452,-500.0,0.00016438,2]
[350119614,1737640250461,-500.0,0.00016438,2]
[350119615,1737640250471,-500.0,0.00016438,2]
[350119616,1737640250480,-153.051506,0.00016438,2]
[350119617,1737640250489,-510.85087168,0.00016438,2]
[350119618,1737640250498,-500.0,0.00016438,2]
[350119619,1737640250507,-501.21750696,0.00016438,2]
[350119620,1737640250516,-2154.38,0.00016438,2]
[350119621,1737640250527,-500.0,0.00016438,2]
[350119622,1737640250536,-1646.13,0.00016438,2]
[350119623,1737640250545,-500.0,0.00016438,2]
[350119624,1737640250554,-500.0,0.00016438,2]
[350119625,1737640250563,-513.92169685,0.00016438,2]
[350119626,1737640250572,-778.88,0.00016438,2]
[350119627,1737640250581,-500.32648021,0.00016438,2]
[350119628,1737640250590,-503.6489101,0.00016438,2]
[350119629,1737640250599,-258.26140543,0.00016438,2]
[350119630,1737640250609,-500.0,0.00016438,2]
[350119631,1737640250621,-500.0,0.00016438,2]
[350119632,1737640250630,-500.0,0.00016438,2]
[350119633,1737640250639,-500.0,0.00016438,2]
[350119634,1737640250648,-701.61,0.00016438,2]
[350119635,1737640250658,-533.38144236,0.00016438,2]
[350119636,1737640250667,-496.02387692,0.00016438,2]
[350119637,1737640250676,-688.84,0.00016438,2]
[350119638,1737640250685,-500.0,0.00016438,2]
[350119639,1737640250697,-282.0,0.00016438,2]
[350119640,1737640250707,-151.0,0.00016438,2]
[350119641,1737640250716,-902.28,0.00016438,2]
[350119642,1737640250725,-151.0,0.00016438,2]
[350119643,1737640250734,-151.0,0.00016438,2]
[350119644,1737640250743,-504.00260762,0.00016438,2]
[350119645,1737640250752,-500.0,0.00016438,2]
[350119646,1737640250762,-500.0,0.00016438,2]
[350119647,1737640250772,-500.0,0.00016438,2]
[350119648,1737640250781,-500.0,0.00016438,2]
[350119649,1737640250790,-500.0,0.00016438,2]
[350119650,1737640250798,-500.0,0.00016438,2]
[350119651,1737640250807,-500.0,0.00016438,2]
[350119652,1737640250816,-500.0,0.00016438,2]
[350119653,1737640250825,-500.0,0.00016438,2]
[350119654,1737640250834,-500.0,0.00016438,2]
[350119655,1737640250843,-500.0,0.00016438,2]
[350119656,1737640250851,-500.0,0.00016438,2]
[350119657,1737640250861,-500.0,0.00016438,2]
[350119658,1737640250870,-500.0,0.00016438,2]
[350119659,1737640250879,-500.0,0.00016438,2]
[350119660,1737640250889,-503.0182055,0.00016438,2]
[350119661,1737640250897,-500.0,0.00016438,2]
[350119662,1737640250906,-500.0,0.00016438,2]
[350119663,1737640250915,-500.0,0.00016438,2]
[350119664,1737640250924,-522.86050382,0.00016438,2]
[350119665,1737640250933,-500.0,0.00016438,2]
[350119666,1737640250942,-500.0,0.00016438,2]
[350119667,1737640250951,-382.64,0.00016438,2]
[350119668,1737640250960,-500.0,0.00016438,2]
[350119669,1737640250969,-267.4126664,0.00016438,2]
[350119670,1737640250978,-500.0,0.00016438,2]
[350119671,1737640250988,-834.31,0.00016438,2]
[350119672,1737640250997,-500.0,0.00016438,2]
[350119673,1737640251007,-500.0,0.00016438,2]
[350119674,1737640251015,-500.0,0.00016438,2]
[350119675,1737640251027,-500.0,0.00016438,2]
[350119676,1737640251036,-190.93564678,0.00016438,2]
[350119677,1737640251045,-151.0,0.00016438,2]
[350119678,1737640251054,-151.0,0.00016438,2]
[350119679,1737640251063,-151.0,0.00016438,2]
[350119680,1737640251196,-500.0,0.00016438,2]
[350119681,1737640251206,-151.0,0.00016438,2]
[350119682,1737640251215,-1657.8,0.00016438,2]
[350119683,1737640251225,-2086.22,0.00016438,2]
[350119684,1737640251234,-500.0,0.00016438,2]
[350119685,1737640251244,-500.0,0.00016438,2]
[350119686,1737640251253,-500.0,0.00016438,2]
[350119687,1737640251263,-500.0,0.00016438,2]
[350119688,1737640251272,-1114.17,0.00016438,2]
[350119689,1737640251281,-500.0,0.00016438,2]
[350119690,1737640251290,-500.0,0.00016438,2]
[350119691,1737640251299,-500.0,0.00016438,2]
[350119692,1737640251308,-500.96560698,0.00016438,2]
[350119693,1737640251317,-500.0,0.00016438,2]
[350119694,1737640251326,-500.0,0.00016438,2]
[350119695,1737640251335,-842.36,0.00016438,2]
[350119696,1737640251344,-500.0,0.00016438,2]
[350119697,1737640251353,-500.44660523,0.00016438,2]
[350119698,1737640251363,-500.0,0.00016438,2]
[350119699,1737640251372,-500.0,0.00016438,2]
[350119700,1737640251381,-157.74491,0.00016438,2]
[350119701,1737640251390,-500.0,0.00016438,2]
[350119702,1737640251399,-500.0,0.00016438,2]
[350119703,1737640251409,-580.56,0.00016438,2]
[350119704,1737640251418,-500.0,0.00016438,2]
[350119705,1737640251427,-500.0,0.00016438,2]
[350119706,1737640251436,-151.0,0.00016438,2]
[350119707,1737640251445,-151.0,0.00016438,2]
[350119708,1737640251454,-151.0,0.00016438,2]
[350119709,1737640251463,-153.340299,0.00016438,2]
[350119710,1737640251472,-500.0,0.00016438,2]
[350119711,1737640251481,-500.0,0.00016438,2]
[350119712,1737640251490,-809.17,0.00016438,2]
[350119713,1737640251499,-860.78,0.00016438,2]
[350119714,1737640251509,-500.0,0.00016438,2]
[350119715,1737640251518,-510.81416729,0.00016438,2]
[350119716,1737640251528,-500.0,0.00016438,2]
[350119717,1737640251537,-500.0,0.00016438,2]
[350119718,1737640251546,-500.0,0.00016438,2]
[350119719,1737640251556,-500.0,0.00016438,2]
[350119720,1737640251565,-502.68868577,0.00016438,2]
[350119721,1737640251574,-500.0,0.00016438,2]
[350119722,1737640251583,-1212.549296,0.00016438,2]
[350119723,1737640251591,-1212.549296,0.00016438,2]
[350119724,1737640251601,-500.0,0.00016438,2]
[350119725,1737640251614,-500.0,0.00016438,2]
[350119726,1737640251624,-1212.549296,0.00016438,2]
[350119727,1737640251633,-500.0,0.00016438,2]
[350119728,1737640251641,-1212.549296,0.00016438,2]
[350119729,1737640251651,-972.53,0.00016438,2]
[350119730,1737640251660,-500.0,0.00016438,2]
[350119731,1737640251669,-500.0,0.00016438,2]
[350119732,1737640251679,-500.0,0.00016438,2]
[350119733,1737640251689,-1212.549296,0.00016438,2]
[350119734,1737640251698,-2059.35,0.00016438,2]
[350119735,1737640251708,-1209.39,0.00016438,2]
[350119736,1737640251717,-1154.42,0.00016438,2]
[350119737,1737640251726,-1212.549296,0.00016438,2]
[350119738,1737640251735,-502.45823327,0.00016438,2]
[350119739,1737640251744,-1212.549296,0.00016438,2]
[350119740,1737640251753,-1212.549296,0.00016438,2]
[350119741,1737640251762,-500.0,0.00016438,2]
[350119742,1737640251771,-500.0,0.00016438,2]
[350119743,1737640251780,-508.18814531,0.00016438,2]
[350119744,1737640251789,-500.0,0.00016438,2]
[350119745,1737640251798,-767.73,0.00016438,2]
[350119746,1737640251807,-500.0,0.00016438,2]
[350119747,1737640251816,-500.0,0.00016438,2]
[350119748,1737640251825,-558.11,0.00016438,2]
[350119749,1737640251834,-529.10237,0.00016438,2]
[350119750,1737640251843,-529.10237,0.00016438,2]
[350119751,1737640251852,-529.10237,0.00016438,2]
[350119752,1737640251861,-568.55937966,0.00016438,2]
[350119753,1737640251870,-2124.2,0.00016438,2]
[350119754,1737640251879,-529.10237,0.00016438,2]
[350119755,1737640251888,-900.49,0.00016438,2]
[350119756,1737640251897,-500.0,0.00016438,2]
[350119757,1737640251906,-151.0,0.00016438,2]
[350119758,1737640251915,-500.0,0.00016438,2]
[350119759,1737640251925,-151.0,0.00016438,2]
[350119760,1737640251934,-151.0,0.00016438,2]
[350119761,1737640251943,-276.325282,0.00016438,2]
[350119762,1737640251952,-500.0,0.00016438,2]
[350119763,1737640251961,-529.10237,0.00016438,2]
[350119764,1737640251970,-543.1,0.00016438,2]
[350119765,1737640251979,-529.10237,0.00016438,2]
[350119766,1737640251989,-529.10237,0.00016438,2]
[350119767,1737640251998,-500.0,0.00016438,2]
[350119768,1737640252008,-529.10237,0.00016438,2]
[350119769,1737640252017,-500.0,0.00016438,2]
[350119770,1737640252028,-509.07585715,0.00016438,2]
[350119771,1737640252037,-500.0,0.00016438,2]
[350119772,1737640252046,-500.0,0.00016438,2]
[350119773,1737640252056,-261.0300001,0.00016438,2]
[350119774,1737640252064,-500.0,0.00016438,2]
[350119775,1737640252073,-500.0,0.00016438,2]
[350119776,1737640252083,-1040.95,0.00016438,2]
[350119777,1737640252092,-500.0,0.00016438,2]
[350119778,1737640252100,-151.0,0.00016438,2]
[350119779,1737640252110,-151.0,0.00016438,2]
[350119780,1737640252119,-296.904218,0.00016438,2]
[350119781,1737640252128,-500.0,0.00016438,2]
[350119782,1737640252137,-2104.27,0.00016438,2]
[350119783,1737640252146,-151.0,0.00016438,2]
[350119784,1737640252155,-240.04934327,0.00016438,2]
[350119785,1737640252164,-500.0,0.00016438,2]
[350119786,1737640252173,-2152.24,0.00016438,2]
[350119787,1737640252182,-1037.27,0.00016438,2]
[350119788,1737640252191,-500.0,0.00016438,2]
[350119789,1737640252201,-504.42780438,0.00016438,2]
[350119790,1737640252210,-179.71968758,0.00016438,2]
[350119791,1737640252219,-500.0,0.00016438,2]
[350119792,1737640252228,-537.41031569,0.00016438,2]
[350119793,1737640252237,-500.0,0.00016438,2]
[350119794,1737640252246,-500.0,0.00016438,2]
[350119795,1737640252255,-500.0,0.00016438,2]
[350119796,1737640252264,-2034.33,0.00016438,2]
[350119797,1737640252275,-3991.34,0.00016438,2]
[350119798,1737640252283,-500.0,0.00016438,2]
[350119799,1737640252293,-500.0,0.00016438,2]
[350119800,1737640252302,-503.85159732,0.00016438,2]
[350119801,1737640252311,-702.78,0.00016438,2]
[350119802,1737640252320,-500.0,0.00016438,2]
[350119803,1737640252329,-151.0,0.00016438,2]
[350119804,1737640252338,-500.0,0.00016438,2]
[350119805,1737640252347,-151.0,0.00016438,2]
[350119806,1737640252356,-39.56044988,0.00016438,2]
[350119807,1737640252662,-1443.18955012,0.00016438,2]
[350119808,1737640252671,-500.0,0.00016438,2]
[350119809,1737640252680,-500.0,0.00016438,2]
[350119810,1737640252690,-500.0,0.00016438,2]
[350119811,1737640252700,-56.81044988,0.00016438,2]
[350119812,1737640252715,-443.18955012,0.00016438,2]
[350119813,1737640252724,-500.0,0.00016438,2]
[350119814,1737640252733,-56.82042028,0.00016438,2]
[350119815,1737640252748,-400.25220804,0.00016438,2]
[350119816,1737640252759,-46.85647718,0.00016438,2]
[350119817,1737640252766,-421.6914775,0.00016438,2]
[350119818,1737640252778,-78.3085225,0.00016438,2]
[350119819,1737640252787,-500.0,0.00016438,2]
[350119820,1737640252796,-502.35952506,0.00016438,2]
[350119821,1737640252805,-450.55810394,0.00016438,2]
[350119822,1737640253130,-1801.0,0.00016299,2]
[350119823,1737640253139,-848.66189606,0.00016438,2]
[350119824,1737640253149,-500.0,0.00016438,2]
[350119825,1737640253158,-500.0,0.00016438,2]
[350119826,1737640253167,-500.0,0.00016438,2]
[350119827,1737640253177,-434.61613587,0.00016438,2]
[350119828,1737640253187,-155.675032,0.00016438,2]
[350119829,1737640253196,-140.43082113,0.00016438,2]
[350119830,1737640253207,-359.56917887,0.00016438,2]
[350119831,1737640253216,-2000.0,0.00016463,2]
[350119832,1737640253225,-200.0,0.00016463,2]
[350119833,1737640253235,-161.54388518,0.00016463,2]
[350119834,1737640253246,-1838.45611482,0.00016463,2]
[350119835,1737640253255,-200.0,0.00016463,2]
[350119836,1737640253264,-5779.99850448,0.000165,2]
[350119837,1737640253612,-537.53788601,0.00016438,2]
[350119838,1737640253622,-500.0,0.00016438,2]
[350119839,1737640253631,-34220.00149552,0.000165,2]
[350119840,1737640253640,-2721.25,0.000165,2]
[350119841,1737640253651,-1000.0,0.000165,2]
[350119842,1737640253660,-151.0,0.00016512,2]
[350119843,1737640253669,-151.0,0.00016512,2]
[350119844,1737640253678,-151.0,0.00016512,2]
[350119845,1737640253688,-239.468734,0.00016512,2]
[350119846,1737640253697,-151.0,0.00016512,2]
[350119847,1737640253707,-151.0,0.00016512,2]
[350119848,1737640253716,-1212.549296,0.00016512,2]
[350119849,1737640253726,-1212.549296,0.00016512,2]
[350119850,1737640253735,-529.10237,0.00016512,2]
[350119851,1737640253744,-529.10237,0.00016512,2]
[350119852,1737640253753,-18093.43855247,0.00016512,2]
[350119853,1737640253794,-541.84073385,0.00016512,2]
[350119854,1737640253821,-20988.0,0.00016512,2]
[350119855,1737640253831,-1532.41806123,0.00016512,2]
[350119856,1737640253843,-2032.45194675,0.00016512,2]
[350119857,1737640253854,-3697.4994,0.00016512,2]
[350119858,1737640469606,264.16373435,0.00015,7]
[350119859,1737640621573,185.89,0.00016658,30]
[350119860,1737640894436,-1318.88,0.0001227,2]
[350119861,1737640894464,-181.0,0.00012329,2]
[350119863,1737641205493,159.57,0.00010137,2]
[350119865,1737641218108,-171.86639322,0.00014534,2]
[350119879,1737641431768,-1147.01360678,0.00014534,2]
[350119880,1737641431779,-170.4,0.00014613,2]
[350119881,1737641431788,-224.58,0.00015177,2]
[350119882,1737641431798,-758.85,0.00015177,2]
[350119883,1737641431809,-250.0,0.00015177,2]
[350119884,1737641431819,-250.0,0.0001521,2]
[350119885,1737641431828,-461.25639322,0.0001521,2]
[350119886,1737641431886,-3158.75279755,0.0001521,2]
[350119887,1737641431895,-1000.0,0.0001524,2]
[350119888,1737641431905,-447.97845766,0.00015253,2]
[350119889,1737641431917,-257.66537834,0.00015253,2]
[350119890,1737641431926,-168.03,0.00015298,2]
[350119891,1737641431935,-917.0,0.00015321,2]
[350119892,1737641431944,-300.0,0.00015328,2]
[350119893,1737641431954,-1094.0,0.00015329,2]
[350119894,1737641431964,-150.99,0.00015329,2]
[350119895,1737641431973,-9999.99,0.00015329,2]
[350119896,1737641431985,-999.99,0.00015329,2]
[350119897,1737641431995,-200.0,0.0001533,2]
[350119898,1737641432004,-150.99,0.0001533,2]
[350119899,1737641432013,-9999.99,0.0001533,2]
[350119900,1737641432023,-299.99,0.0001533,2]
[350119901,1737641432032,-23900.0,0.00015451,2]
[350119902,1737641432041,-250.0,0.00015501,2]
[350119903,1737641432051,-277.87,0.00015501,2]
[350119904,1737641432064,-1413.0,0.000156,3]
[350119905,1737641432074,-160.93,0.0001568,2]
[350119906,1737641432084,-206.83,0.0001585,2]
[350119907,1737641432093,-874.71580382,0.000159,2]
[350119908,1737641432103,-732.36687682,0.00016,2]
[350119909,1737641432132,-433.84886493,0.00016,2]
[350119910,1737641432143,-51267.9332992,0.00016,2]
[350119911,1737641432200,-2403.96549167,0.00016,2]
[350119912,1737641432209,-3763.05917733,0.00016,2]
[350119913,1737641432218,-251.34,0.00016079,2]
[350119914,1737641432227,-150.0,0.00016079,2]
[350119915,1737641432237,-1194.02656252,0.00016079,2]
[350119916,1737641432251,-766.35343748,0.00016079,2]
[350119917,1737641432261,-150.0,0.00016079,2]
[350119918,1737641432270,-388.64656252,0.00016079,2]
[350119919,1737641432281,-185.58343748,0.00016079,2]
[350119920,1737641432290,-150.0,0.00016079,2]
[350119921,1737641432299,-298.1,0.00016079,2]
[350119922,1737641432311,-150.0,0.00016079,2]
[350119923,1737641432321,-1600.87079023,0.00016116,2]
[350119924,1737641432338,-2120.93920977,0.00016116,2]